[Event "Titled Tuesday Blitz December 20 Early 2022"]
[White "stollenmonster"]
[Black "Castro Andrade, Seirbert Cristian"]
[BlackFideId "3863336"]
[WhiteElo "2932"]
[BlackElo "1364"]
[Result "1-0"]
[Round "10"]
[TimeControl "180+2"]
[Date "2022.12.20"]
[WhiteClock "0:00:19"]
[BlackClock "0:01:02"]

1. e4 {[%clk 0:03:00]}  c6 {[%clk 0:02:59]} 2. d4 {[%clk 0:03:00]}  d5 {[%clk 0:02:59]} 3. e5 {[%clk 0:03:00]}  Bf5 {[%clk 0:02:56]} 4. Ne2 {[%clk 0:03:01]}  e6 {[%clk 0:02:52]} 5. Ng3 {[%clk 0:03:00]}  Bg6 {[%clk 0:02:53]} 6. h4 {[%clk 0:03:01]}  h5 {[%clk 0:02:50]} 7. Bd3 {[%clk 0:03:00]}  Bxd3 {[%clk 0:02:50]} 8. cxd3 {[%clk 0:03:01]}  g6 {[%clk 0:02:49]} 9. Nd2 {[%clk 0:03:00]}  Nd7 {[%clk 0:02:42]} 10. Nf3 {[%clk 0:03:00]}  Be7 {[%clk 0:02:41]} 11. Bg5 {[%clk 0:03:00]}  Nh6 {[%clk 0:02:40]} 12. O-O {[%clk 0:02:55]}  Ng4 {[%clk 0:02:34]} 13. Qd2 {[%clk 0:02:54]}  O-O {[%clk 0:02:33]} 14. Rfe1 {[%clk 0:02:48]}  Rc8 {[%clk 0:02:31]} 15. b4 {[%clk 0:02:47]}  b6 {[%clk 0:02:31]} 16. Rac1 {[%clk 0:02:42]}  c5 {[%clk 0:02:30]} 17. bxc5 {[%clk 0:02:42]}  bxc5 {[%clk 0:02:31]} 18. dxc5 {[%clk 0:02:36]}  Rxc5 {[%clk 0:02:31]} 19. Rxc5 {[%clk 0:02:32]}  Nxc5 {[%clk 0:02:31]} 20. d4 {[%clk 0:02:29]}  Nd7 {[%clk 0:02:28]} 21. Qf4 {[%clk 0:02:30]}  Bxg5 {[%clk 0:02:18]} 22. Nxg5 {[%clk 0:02:30]}  Kg7 {[%clk 0:02:18]} 23. Nf1 {[%clk 0:02:22]}  Nb6 {[%clk 0:02:15]} 24. Ne3 {[%clk 0:02:22]}  Nxe3 {[%clk 0:02:15]} 25. Rxe3 {[%clk 0:02:22]}  Nc4 {[%clk 0:02:12]} 26. Rf3 {[%clk 0:02:15]}  Qe7 {[%clk 0:02:03]} 27. g4 {[%clk 0:01:54]}  f6 {[%clk 0:02:01]} 28. gxh5 {[%clk 0:01:44]}  gxh5 {[%clk 0:01:50]} 29. Rg3 {[%clk 0:00:30]}  fxg5 {[%clk 0:01:02]} 30. Rxg5+ {[%clk 0:00:31]}  Kh8 {[%clk 0:01:01]} 31. Rxh5+ {[%clk 0:00:29]}  Kg8 {[%clk 0:01:02]} 32. Qg4+ {[%clk 0:00:23]}  Qg7 {[%clk 0:01:02]} 33. Rg5 {[%clk 0:00:21]}  Rf7 {[%clk 0:01:02]} 34. Qxe6 {[%clk 0:00:19]} 1-0


[Site "https://www.chess.com"]

[Event "Titled Tuesday Blitz December 20 Early 2022"]
[White "tylityli"]
[Black "Sunny_Star"]
[WhiteElo "2334"]
[BlackElo "2241"]
[Result "1-0"]
[Round "10"]
[TimeControl "180+2"]
[Date "2022.12.20"]
[WhiteClock "0:00:40"]
[BlackClock "0:00:01"]

1. d4 {[%clk 0:02:56]}  Nf6 {[%clk 0:00:17]} 2. c4 {[%clk 0:02:52]}  e6 {[%clk 0:00:17]} 3. Nc3 {[%clk 0:02:52]}  d5 {[%clk 0:00:17]} 4. cxd5 {[%clk 0:02:51]}  exd5 {[%clk 0:00:18]} 5. Bg5 {[%clk 0:02:52]}  Be7 {[%clk 0:00:17]} 6. e3 {[%clk 0:02:52]}  c6 {[%clk 0:00:17]} 7. Bd3 {[%clk 0:02:52]}  O-O {[%clk 0:00:17]} 8. Qc2 {[%clk 0:02:52]}  h6 {[%clk 0:00:17]} 9. Bh4 {[%clk 0:02:52]}  Nbd7 {[%clk 0:00:17]} 10. Nge2 {[%clk 0:02:52]}  c5 {[%clk 0:00:16]} 11. O-O {[%clk 0:02:50]}  c4 {[%clk 0:00:15]} 12. Bf5 {[%clk 0:02:50]}  Nb6 {[%clk 0:00:14]} 13. a4 {[%clk 0:02:48]}  a5 {[%clk 0:00:12]} 14. Nb5 {[%clk 0:02:41]}  Bd7 {[%clk 0:00:11]} 15. Nec3 {[%clk 0:02:40]}  Rc8 {[%clk 0:00:11]} 16. f3 {[%clk 0:02:24]}  Rb8 {[%clk 0:00:10]} 17. Bg3 {[%clk 0:02:22]}  Rc8 {[%clk 0:00:09]} 18. Rad1 {[%clk 0:02:05]}  Nh5 {[%clk 0:00:09]} 19. Bf2 {[%clk 0:01:58]}  Nf6 {[%clk 0:00:07]} 20. Kh1 {[%clk 0:01:58]}  Bxf5 {[%clk 0:00:06]} 21. Qxf5 {[%clk 0:01:57]}  Qd7 {[%clk 0:00:06]} 22. Qc2 {[%clk 0:01:52]}  Bb4 {[%clk 0:00:05]} 23. h3 {[%clk 0:01:49]}  Rfe8 {[%clk 0:00:06]} 24. e4 {[%clk 0:01:46]}  Rc6 {[%clk 0:00:05]} 25. e5 {[%clk 0:01:43]}  Nh5 {[%clk 0:00:05]} 26. Qc1 {[%clk 0:01:09]}  Rg6 {[%clk 0:00:04]} 27. g4 {[%clk 0:01:07]}  f6 {[%clk 0:00:02]} 28. Kh2 {[%clk 0:00:57]}  fxe5 {[%clk 0:00:02]} 29. dxe5 {[%clk 0:00:45]}  Rxe5 {[%clk 0:00:01]} 30. gxh5 {[%clk 0:00:40]}  Rxh5 {[%clk 0:00:01]} 31. h4 {[%clk 0:00:40]} 1-0


[Site "https://www.chess.com"]

[Event "Titled Tuesday Blitz December 20 Early 2022"]
[White "wonderfultime"]
[Black "Zhigalko_Sergei"]
[WhiteElo "3066"]
[BlackElo "2876"]
[Result "1-0"]
[Round "10"]
[TimeControl "180+2"]
[Date "2022.12.20"]
[WhiteClock "0:00:19"]
[BlackClock "0:00:01"]

1. d4 {[%clk 0:02:53]}  Nf6 {[%clk 0:02:59]} 2. Nf3 {[%clk 0:02:53]}  e6 {[%clk 0:02:59]} 3. Bf4 {[%clk 0:02:53]}  d5 {[%clk 0:02:52]} 4. e3 {[%clk 0:02:53]}  Bd6 {[%clk 0:02:52]} 5. Bg3 {[%clk 0:02:54]}  O-O {[%clk 0:02:52]} 6. c4 {[%clk 0:02:54]}  b6 {[%clk 0:02:24]} 7. Nc3 {[%clk 0:02:54]}  Ba6 {[%clk 0:02:19]} 8. Qa4 {[%clk 0:02:30]}  Bxg3 {[%clk 0:02:06]} 9. hxg3 {[%clk 0:02:29]}  c6 {[%clk 0:02:02]} 10. Qb3 {[%clk 0:02:09]}  Nbd7 {[%clk 0:01:55]} 11. Be2 {[%clk 0:02:02]}  Bxc4 {[%clk 0:01:49]} 12. Bxc4 {[%clk 0:02:02]}  dxc4 {[%clk 0:01:50]} 13. Qxc4 {[%clk 0:02:03]}  c5 {[%clk 0:01:42]} 14. O-O {[%clk 0:02:03]}  Qc7 {[%clk 0:01:37]} 15. b4 {[%clk 0:01:52]}  Rfc8 {[%clk 0:01:26]} 16. dxc5 {[%clk 0:01:48]}  bxc5 {[%clk 0:01:27]} 17. b5 {[%clk 0:01:49]}  Nb6 {[%clk 0:01:27]} 18. Qb3 {[%clk 0:01:48]}  c4 {[%clk 0:01:25]} 19. Qc2 {[%clk 0:01:48]}  a6 {[%clk 0:01:20]} 20. a4 {[%clk 0:01:46]}  axb5 {[%clk 0:01:20]} 21. axb5 {[%clk 0:01:44]}  h6 {[%clk 0:01:16]} 22. Nd4 {[%clk 0:01:39]}  Qc5 {[%clk 0:01:16]} 23. Rfb1 {[%clk 0:01:31]}  Ng4 {[%clk 0:00:58]} 24. Ne4 {[%clk 0:01:25]}  Qh5 {[%clk 0:00:54]} 25. Nf3 {[%clk 0:01:26]}  Rxa1 {[%clk 0:00:38]} 26. Rxa1 {[%clk 0:01:26]}  Qf5 {[%clk 0:00:27]} 27. Rc1 {[%clk 0:01:19]}  Ra8 {[%clk 0:00:22]} 28. Qb1 {[%clk 0:01:13]}  Ne5 {[%clk 0:00:11]} 29. Nd4 {[%clk 0:00:32]}  Qh5 {[%clk 0:00:11]} 30. Nc3 {[%clk 0:00:27]}  Ng4 {[%clk 0:00:07]} 31. Nf3 {[%clk 0:00:27]}  Rd8 {[%clk 0:00:05]} 32. Qe4 {[%clk 0:00:24]}  Nf6 {[%clk 0:00:03]} 33. Qc6 {[%clk 0:00:23]}  Rb8 {[%clk 0:00:02]} 34. Qc7 {[%clk 0:00:22]}  Nfd7 {[%clk 0:00:03]} 35. Rd1 {[%clk 0:00:21]}  Qc5 {[%clk 0:00:02]} 36. Rxd7 {[%clk 0:00:21]}  Nxd7 {[%clk 0:00:03]} 37. Qxd7 {[%clk 0:00:21]}  Qb4 {[%clk 0:00:01]} 38. Qd4 {[%clk 0:00:20]}  Qb3 {[%clk 0:00:02]} 39. Ne5 {[%clk 0:00:21]}  Qc2 {[%clk 0:00:01]} 40. Nc6 {[%clk 0:00:19]} 1-0


[Site "https://www.chess.com"]

[Event "Titled Tuesday Blitz December 20 Early 2022"]
[White "Abd El Fatah, Reda Fadel"]
[Black "Balasch Peries, Eduard"]
[WhiteFideId "10600752"]
[BlackFideId "32067372"]
[WhiteElo "2134"]
[BlackElo "1671"]
[Result "0-1"]
[Round "11"]
[TimeControl "180+2"]
[Date "2022.12.20"]
[WhiteClock "0:00:41"]
[BlackClock "0:00:18"]

1. e4 {[%clk 0:02:58]}  e5 {[%clk 0:03:00]} 2. d4 {[%clk 0:02:57]}  exd4 {[%clk 0:02:59]} 3. c3 {[%clk 0:02:58]}  d5 {[%clk 0:02:58]} 4. exd5 {[%clk 0:02:57]}  Qxd5 {[%clk 0:02:59]} 5. cxd4 {[%clk 0:02:58]}  Nc6 {[%clk 0:03:00]} 6. Nf3 {[%clk 0:02:57]}  Bg4 {[%clk 0:03:00]} 7. Be2 {[%clk 0:02:57]}  Bb4+ {[%clk 0:02:53]} 8. Nc3 {[%clk 0:02:57]}  Bxf3 {[%clk 0:02:52]} 9. Bxf3 {[%clk 0:02:58]}  Qc4 {[%clk 0:02:53]} 10. Bxc6+ {[%clk 0:02:58]}  bxc6 {[%clk 0:02:52]} 11. Qe2+ {[%clk 0:02:59]}  Qxe2+ {[%clk 0:02:52]} 12. Kxe2 {[%clk 0:02:59]}  Nf6 {[%clk 0:02:51]} 13. Kd3 {[%clk 0:02:57]}  O-O-O {[%clk 0:02:51]} 14. Kc4 {[%clk 0:02:57]}  Ba5 {[%clk 0:02:48]} 15. Bg5 {[%clk 0:02:55]}  Rd6 {[%clk 0:02:45]} 16. Bf4 {[%clk 0:02:53]}  Rd7 {[%clk 0:02:43]} 17. Be5 {[%clk 0:02:52]}  Ng4 {[%clk 0:02:37]} 18. Bg3 {[%clk 0:02:47]}  Bb6 {[%clk 0:02:35]} 19. Rad1 {[%clk 0:02:47]}  Rhd8 {[%clk 0:02:30]} 20. Ne2 {[%clk 0:02:45]}  f6 {[%clk 0:02:20]} 21. h3 {[%clk 0:02:35]}  Nh6 {[%clk 0:02:20]} 22. f3 {[%clk 0:02:31]}  Nf5 {[%clk 0:02:18]} 23. Bf2 {[%clk 0:02:31]}  Ne7 {[%clk 0:02:04]} 24. Rd3 {[%clk 0:02:22]}  c5 {[%clk 0:01:59]} 25. Rhd1 {[%clk 0:02:19]}  Nc6 {[%clk 0:02:00]} 26. R3d2 {[%clk 0:02:09]}  cxd4 {[%clk 0:01:57]} 27. Nxd4 {[%clk 0:02:09]}  Ne5+ {[%clk 0:01:29]} 28. Kc3 {[%clk 0:02:08]}  Rd5 {[%clk 0:00:51]} 29. b4 {[%clk 0:01:54]}  a5 {[%clk 0:00:48]} 30. a3 {[%clk 0:01:52]}  c5 {[%clk 0:00:36]} 31. bxc5 {[%clk 0:01:48]}  Bxc5 {[%clk 0:00:37]} 32. Bg3 {[%clk 0:01:15]}  Bxa3 {[%clk 0:00:29]} 33. Kb3 {[%clk 0:00:54]}  Bc5 {[%clk 0:00:25]} 34. Rc2 {[%clk 0:00:52]}  Kb7 {[%clk 0:00:20]} 35. Ne6 {[%clk 0:00:51]}  Rxd1 {[%clk 0:00:15]} 36. Nxd8+ {[%clk 0:00:51]}  Rxd8 {[%clk 0:00:07]} 37. Rxc5 {[%clk 0:00:51]}  Kb6 {[%clk 0:00:06]} 38. Bf2 {[%clk 0:00:47]}  Ka6 {[%clk 0:00:07]} 39. Ka4 {[%clk 0:00:45]}  Rd2 {[%clk 0:00:03]} 40. Rxa5+ {[%clk 0:00:45]}  Kb7 {[%clk 0:00:04]} 41. Be3 {[%clk 0:00:40]}  Rxg2 {[%clk 0:00:03]} 42. Ra7+ {[%clk 0:00:40]}  Kc6 {[%clk 0:00:03]} 43. Re7 {[%clk 0:00:36]}  Nxf3 {[%clk 0:00:03]} 44. Kb4 {[%clk 0:00:35]}  Kd5 {[%clk 0:00:03]} 45. Kc3 {[%clk 0:00:35]}  Ne5 {[%clk 0:00:03]} 46. h4 {[%clk 0:00:30]}  Rg3 {[%clk 0:00:03]} 47. Kd2 {[%clk 0:00:29]}  Nc4+ {[%clk 0:00:03]} 48. Ke2 {[%clk 0:00:28]}  Rxe3+ {[%clk 0:00:04]} 49. Rxe3 {[%clk 0:00:28]}  Nxe3 {[%clk 0:00:05]} 50. Kxe3 {[%clk 0:00:29]}  Ke5 {[%clk 0:00:06]} 51. Kf3 {[%clk 0:00:29]}  Kf5 {[%clk 0:00:06]} 52. Kg3 {[%clk 0:00:30]}  h5 {[%clk 0:00:06]} 53. Kf3 {[%clk 0:00:30]}  g5 {[%clk 0:00:07]} 54. Kg3 {[%clk 0:00:31]}  g4 {[%clk 0:00:07]} 55. Kg2 {[%clk 0:00:31]}  Kf4 {[%clk 0:00:08]} 56. Kf2 {[%clk 0:00:32]}  g3+ {[%clk 0:00:08]} 57. Kg2 {[%clk 0:00:33]}  Kg4 {[%clk 0:00:09]} 58. Kf1 {[%clk 0:00:33]}  Kxh4 {[%clk 0:00:10]} 59. Kg2 {[%clk 0:00:33]}  Kg4 {[%clk 0:00:10]} 60. Kg1 {[%clk 0:00:34]}  h4 {[%clk 0:00:11]} 61. Kh1 {[%clk 0:00:35]}  f5 {[%clk 0:00:12]} 62. Kg1 {[%clk 0:00:36]}  f4 {[%clk 0:00:13]} 63. Kg2 {[%clk 0:00:36]}  f3+ {[%clk 0:00:14]} 64. Kg1 {[%clk 0:00:37]}  h3 {[%clk 0:00:15]} 65. Kf1 {[%clk 0:00:37]}  h2 {[%clk 0:00:14]} 66. Ke1 {[%clk 0:00:38]}  h1=Q+ {[%clk 0:00:15]} 67. Kd2 {[%clk 0:00:39]}  Qf1 {[%clk 0:00:14]} 68. Kc3 {[%clk 0:00:39]}  Qe2 {[%clk 0:00:14]} 69. Kd4 {[%clk 0:00:40]}  f2 {[%clk 0:00:14]} 70. Kd5 {[%clk 0:00:40]}  f1=Q {[%clk 0:00:15]} 71. Kd6 {[%clk 0:00:41]}  Qfd1+ {[%clk 0:00:16]} 72. Kc5 {[%clk 0:00:41]}  Qec2+ {[%clk 0:00:16]} 73. Kb4 {[%clk 0:00:40]}  Qdb1+ {[%clk 0:00:17]} 74. Ka3 {[%clk 0:00:41]}  Qca2# {[%clk 0:00:18]} 0-1


[Site "https://www.chess.com"]

[Event "Titled Tuesday Blitz December 20 Early 2022"]
[White "Aishath, Aika"]
[Black "Vesper, Horst"]
[WhiteFideId "16702026"]
[BlackFideId "24677159"]
[WhiteElo "2770"]
[BlackElo "2028"]
[Result "1-0"]
[Round "11"]
[TimeControl "180+2"]
[Date "2022.12.20"]
[WhiteClock "0:00:07"]
[BlackClock "0:00:02"]

1. d4 {[%clk 0:03:00]}  Nf6 {[%clk 0:02:58]} 2. c4 {[%clk 0:03:00]}  g6 {[%clk 0:02:59]} 3. Nf3 {[%clk 0:03:01]}  Bg7 {[%clk 0:02:59]} 4. g3 {[%clk 0:03:00]}  O-O {[%clk 0:02:59]} 5. Bg2 {[%clk 0:03:01]}  d6 {[%clk 0:03:00]} 6. O-O {[%clk 0:03:01]}  Nc6 {[%clk 0:03:00]} 7. Nc3 {[%clk 0:03:02]}  e5 {[%clk 0:03:00]} 8. d5 {[%clk 0:03:01]}  Ne7 {[%clk 0:02:59]} 9. e4 {[%clk 0:02:59]}  h6 {[%clk 0:02:55]} 10. Ne1 {[%clk 0:02:59]}  Nd7 {[%clk 0:02:53]} 11. Nd3 {[%clk 0:02:59]}  f5 {[%clk 0:02:53]} 12. f4 {[%clk 0:02:59]}  exf4 {[%clk 0:02:40]} 13. Nxf4 {[%clk 0:02:57]}  Ne5 {[%clk 0:02:38]} 14. Qe2 {[%clk 0:02:45]}  c5 {[%clk 0:02:28]} 15. Ne6 {[%clk 0:02:20]}  Bxe6 {[%clk 0:02:26]} 16. dxe6 {[%clk 0:02:21]}  N7c6 {[%clk 0:02:08]} 17. Be3 {[%clk 0:02:17]}  Qe7 {[%clk 0:01:45]} 18. exf5 {[%clk 0:02:14]}  gxf5 {[%clk 0:01:44]} 19. Nd5 {[%clk 0:02:12]}  Qd8 {[%clk 0:01:23]} 20. Kh1 {[%clk 0:02:00]}  Rc8 {[%clk 0:01:23]} 21. Qc2 {[%clk 0:01:47]}  Ne7 {[%clk 0:01:05]} 22. Nxe7+ {[%clk 0:01:45]}  Qxe7 {[%clk 0:01:05]} 23. Rxf5 {[%clk 0:01:45]}  Rxf5 {[%clk 0:01:01]} 24. Qxf5 {[%clk 0:01:45]}  Nxc4 {[%clk 0:01:02]} 25. Bxh6 {[%clk 0:01:31]}  Bxh6 {[%clk 0:00:44]} 26. Qg4+ {[%clk 0:01:30]}  Bg7 {[%clk 0:00:42]} 27. Qxc4 {[%clk 0:01:31]}  Rf8 {[%clk 0:00:39]} 28. h4 {[%clk 0:01:13]}  b6 {[%clk 0:00:32]} 29. Qg4 {[%clk 0:01:09]}  Rf2 {[%clk 0:00:29]} 30. Rf1 {[%clk 0:01:00]}  Rxf1+ {[%clk 0:00:24]} 31. Bxf1 {[%clk 0:01:01]}  d5 {[%clk 0:00:24]} 32. b3 {[%clk 0:00:56]}  d4 {[%clk 0:00:24]} 33. Bd3 {[%clk 0:00:56]}  Qf6 {[%clk 0:00:20]} 34. Kg2 {[%clk 0:00:52]}  Kf8 {[%clk 0:00:20]} 35. Qe4 {[%clk 0:00:45]}  Ke7 {[%clk 0:00:19]} 36. Bc4 {[%clk 0:00:40]}  d3 {[%clk 0:00:08]} 37. Qb7+ {[%clk 0:00:34]}  Kf8 {[%clk 0:00:06]} 38. Qc8+ {[%clk 0:00:31]}  Ke7 {[%clk 0:00:06]} 39. Qd7+ {[%clk 0:00:28]}  Kf8 {[%clk 0:00:06]} 40. Qd6+ {[%clk 0:00:25]}  Qe7 {[%clk 0:00:06]} 41. Qxd3 {[%clk 0:00:23]}  Bd4 {[%clk 0:00:06]} 42. Qf5+ {[%clk 0:00:21]}  Kg7 {[%clk 0:00:06]} 43. Qg4+ {[%clk 0:00:18]}  Kh6 {[%clk 0:00:05]} 44. Kh3 {[%clk 0:00:19]}  Qf6 {[%clk 0:00:05]} 45. Qf4+ {[%clk 0:00:16]}  Qxf4 {[%clk 0:00:05]} 46. gxf4 {[%clk 0:00:17]}  Bf6 {[%clk 0:00:05]} 47. Kg4 {[%clk 0:00:17]}  Kg7 {[%clk 0:00:05]} 48. h5 {[%clk 0:00:13]}  Be7 {[%clk 0:00:06]} 49. f5 {[%clk 0:00:11]}  Kh6 {[%clk 0:00:06]} 50. Be2 {[%clk 0:00:11]}  Bf6 {[%clk 0:00:04]} 51. a4 {[%clk 0:00:11]}  Kg7 {[%clk 0:00:03]} 52. Kf4 {[%clk 0:00:12]}  Kf8 {[%clk 0:00:03]} 53. Ke4 {[%clk 0:00:11]}  Bg7 {[%clk 0:00:02]} 54. Kd5 {[%clk 0:00:10]}  Ke7 {[%clk 0:00:03]} 55. Kc6 {[%clk 0:00:10]}  Bd4 {[%clk 0:00:02]} 56. Kb7 {[%clk 0:00:09]}  a5 {[%clk 0:00:03]} 57. h6 {[%clk 0:00:09]}  Kf6 {[%clk 0:00:02]} 58. Bc4 {[%clk 0:00:08]}  Kxf5 {[%clk 0:00:02]} 59. e7 {[%clk 0:00:07]} 1-0


[Site "https://www.chess.com"]

[Event "Titled Tuesday Blitz December 20 Early 2022"]
[White "Al-Kailani, Zaid"]
[Black "Jacomet Rodriguez, Josep-M."]
[WhiteFideId "8100187"]
[BlackFideId "54509815"]
[WhiteElo "2053"]
[BlackElo "3034"]
[Result "0-1"]
[Round "11"]
[TimeControl "180+2"]
[Date "2022.12.20"]
[WhiteClock "0:00:04"]
[BlackClock "0:00:16"]

1. e4 {[%clk 0:03:00]}  e5 {[%clk 0:03:00]} 2. Nf3 {[%clk 0:03:00]}  Nc6 {[%clk 0:03:01]} 3. Bc4 {[%clk 0:02:58]}  Bc5 {[%clk 0:03:00]} 4. c3 {[%clk 0:02:58]}  Nf6 {[%clk 0:03:00]} 5. d4 {[%clk 0:02:59]}  exd4 {[%clk 0:03:01]} 6. e5 {[%clk 0:02:59]}  d5 {[%clk 0:03:00]} 7. Bb5 {[%clk 0:02:59]}  Ne4 {[%clk 0:03:01]} 8. cxd4 {[%clk 0:03:00]}  Bb6 {[%clk 0:03:00]} 9. Nc3 {[%clk 0:02:59]}  O-O {[%clk 0:03:00]} 10. Be3 {[%clk 0:03:00]}  f5 {[%clk 0:02:59]} 11. exf6 {[%clk 0:02:57]}  Nxf6 {[%clk 0:02:58]} 12. Bxc6 {[%clk 0:02:56]}  bxc6 {[%clk 0:02:58]} 13. Ne5 {[%clk 0:02:56]}  Ba6 {[%clk 0:02:47]} 14. Qa4 {[%clk 0:02:53]}  Qc8 {[%clk 0:02:47]} 15. Qxc6 {[%clk 0:02:44]}  Rd8 {[%clk 0:02:35]} 16. O-O-O {[%clk 0:02:36]}  Rd6 {[%clk 0:02:35]} 17. Qa4 {[%clk 0:02:36]}  c5 {[%clk 0:02:29]} 18. dxc5 {[%clk 0:02:32]}  Bxc5 {[%clk 0:02:29]} 19. Bxc5 {[%clk 0:02:32]}  Qxc5 {[%clk 0:02:30]} 20. Qd4 {[%clk 0:02:33]}  Qa5 {[%clk 0:02:25]} 21. Kb1 {[%clk 0:02:23]}  Rb8 {[%clk 0:02:26]} 22. Ka1 {[%clk 0:02:19]}  Rb4 {[%clk 0:02:08]} 23. Qxa7 {[%clk 0:02:12]}  Rb7 {[%clk 0:02:08]} 24. Qa8+ {[%clk 0:01:44]}  Rd8 {[%clk 0:02:06]} 25. Nc6 {[%clk 0:01:43]}  Qxa2+ {[%clk 0:02:05]} 26. Kxa2 {[%clk 0:01:42]}  Rxa8 {[%clk 0:02:05]} 27. Kb1 {[%clk 0:01:41]}  Ne4 {[%clk 0:01:31]} 28. Nxe4 {[%clk 0:01:29]}  dxe4 {[%clk 0:01:32]} 29. Ne5 {[%clk 0:01:12]}  Re7 {[%clk 0:01:13]} 30. Rd5 {[%clk 0:01:06]}  Rae8 {[%clk 0:01:11]} 31. Nc6 {[%clk 0:01:06]}  Rf7 {[%clk 0:01:08]} 32. Nb4 {[%clk 0:01:01]}  Bb7 {[%clk 0:01:05]} 33. Rd2 {[%clk 0:00:59]}  e3 {[%clk 0:01:02]} 34. fxe3 {[%clk 0:01:00]}  Be4+ {[%clk 0:01:01]} 35. Ka2 {[%clk 0:00:53]}  Rb7 {[%clk 0:01:01]} 36. Kb3 {[%clk 0:00:49]}  Bg6 {[%clk 0:01:01]} 37. Rd4 {[%clk 0:00:42]}  Rxe3+ {[%clk 0:01:00]} 38. Kc4 {[%clk 0:00:43]}  Re8 {[%clk 0:00:45]} 39. Rhd1 {[%clk 0:00:37]}  Rc8+ {[%clk 0:00:45]} 40. Kd5 {[%clk 0:00:36]}  h6 {[%clk 0:00:38]} 41. Ke5 {[%clk 0:00:33]}  Re7+ {[%clk 0:00:32]} 42. Kf4 {[%clk 0:00:33]}  Rf8+ {[%clk 0:00:32]} 43. Kg4 {[%clk 0:00:31]}  Bf5+ {[%clk 0:00:31]} 44. Kg3 {[%clk 0:00:28]}  Re3+ {[%clk 0:00:28]} 45. Kf2 {[%clk 0:00:27]}  Rb3 {[%clk 0:00:29]} 46. R1d2 {[%clk 0:00:12]}  Bg6+ {[%clk 0:00:29]} 47. Kg1 {[%clk 0:00:10]}  Re3 {[%clk 0:00:29]} 48. h3 {[%clk 0:00:10]}  Kh7 {[%clk 0:00:29]} 49. Nd5 {[%clk 0:00:09]}  Re1+ {[%clk 0:00:29]} 50. Kh2 {[%clk 0:00:10]}  Rff1 {[%clk 0:00:30]} 51. Kg3 {[%clk 0:00:08]}  Bf7 {[%clk 0:00:29]} 52. Rf4 {[%clk 0:00:07]}  Be6 {[%clk 0:00:20]} 53. Rxf1 {[%clk 0:00:07]}  Rxf1 {[%clk 0:00:21]} 54. Nf4 {[%clk 0:00:08]}  Bf7 {[%clk 0:00:21]} 55. Rd7 {[%clk 0:00:08]}  Kg8 {[%clk 0:00:21]} 56. Rd8+ {[%clk 0:00:07]}  Kh7 {[%clk 0:00:22]} 57. Rd7 {[%clk 0:00:08]}  Bb3 {[%clk 0:00:22]} 58. Nh5 {[%clk 0:00:08]}  Kg6 {[%clk 0:00:20]} 59. Nxg7 {[%clk 0:00:07]}  Bf7 {[%clk 0:00:18]} 60. Rxf7 {[%clk 0:00:05]}  Kxf7 {[%clk 0:00:17]} 61. Nh5 {[%clk 0:00:05]}  Rb1 {[%clk 0:00:17]} 62. Nf4 {[%clk 0:00:05]}  Rxb2 {[%clk 0:00:18]} 63. Kg4 {[%clk 0:00:05]}  Rb5 {[%clk 0:00:18]} 64. g3 {[%clk 0:00:06]}  Kf6 {[%clk 0:00:19]} 65. h4 {[%clk 0:00:07]}  Rb4 {[%clk 0:00:18]} 66. Kh5 {[%clk 0:00:06]}  Rb8 {[%clk 0:00:16]} 67. Nd5+ {[%clk 0:00:06]}  Ke6 {[%clk 0:00:14]} 68. Nf4+ {[%clk 0:00:07]}  Kf6 {[%clk 0:00:14]} 69. Nd5+ {[%clk 0:00:07]}  Kg7 {[%clk 0:00:15]} 70. Nf4 {[%clk 0:00:07]}  Rb3 {[%clk 0:00:15]} 71. Kg4 {[%clk 0:00:07]}  Ra3 {[%clk 0:00:15]} 72. Nh5+ {[%clk 0:00:07]}  Kf7 {[%clk 0:00:15]} 73. Nf4 {[%clk 0:00:08]}  Kf6 {[%clk 0:00:16]} 74. Nh5+ {[%clk 0:00:08]}  Ke5 {[%clk 0:00:17]} 75. Nf4 {[%clk 0:00:08]}  Ke4 {[%clk 0:00:17]} 76. Nh5 {[%clk 0:00:09]}  Ra8 {[%clk 0:00:17]} 77. Nf4 {[%clk 0:00:08]}  Rg8+ {[%clk 0:00:17]} 78. Kh5 {[%clk 0:00:08]}  Rxg3 {[%clk 0:00:17]} 79. Ng6 {[%clk 0:00:07]}  Kf5 {[%clk 0:00:18]} 80. Ne7+ {[%clk 0:00:08]}  Kf6 {[%clk 0:00:18]} 81. Nd5+ {[%clk 0:00:08]}  Kg7 {[%clk 0:00:18]} 82. Ne7 {[%clk 0:00:08]}  Kh7 {[%clk 0:00:17]} 83. Nf5 {[%clk 0:00:08]}  Rg6 {[%clk 0:00:18]} 84. Ne3 {[%clk 0:00:07]}  Rf6 {[%clk 0:00:18]} 85. Kg4 {[%clk 0:00:07]}  Re6 {[%clk 0:00:18]} 86. Nf5 {[%clk 0:00:07]}  Ra6 {[%clk 0:00:18]} 87. Kh5 {[%clk 0:00:07]}  Ra5 {[%clk 0:00:18]} 88. Kg4 {[%clk 0:00:07]}  Kg6 {[%clk 0:00:17]} 89. h5+ {[%clk 0:00:08]}  Kh7 {[%clk 0:00:11]} 90. Ng3 {[%clk 0:00:07]}  Ra4+ {[%clk 0:00:10]} 91. Kf5 {[%clk 0:00:07]}  Ra3 {[%clk 0:00:11]} 92. Kg4 {[%clk 0:00:07]}  Ra1 {[%clk 0:00:11]} 93. Ne4 {[%clk 0:00:06]}  Kg7 {[%clk 0:00:10]} 94. Ng3 {[%clk 0:00:05]}  Kf6 {[%clk 0:00:11]} 95. Ne4+ {[%clk 0:00:04]}  Ke5 {[%clk 0:00:11]} 96. Ng3 {[%clk 0:00:04]}  Rb1 {[%clk 0:00:11]} 97. Kf3 {[%clk 0:00:03]}  Rb4 {[%clk 0:00:12]} 98. Nf1 {[%clk 0:00:01]}  Kf5 {[%clk 0:00:11]} 99. Ne3+ {[%clk 0:00:01]}  Kg5 {[%clk 0:00:12]} 100. Nd5 {[%clk 0:00:02]}  Ra4 {[%clk 0:00:13]} 101. Kg3 {[%clk 0:00:02]}  Kxh5 {[%clk 0:00:13]} 102. Nf4+ {[%clk 0:00:03]}  Kg5 {[%clk 0:00:14]} 103. Nh3+ {[%clk 0:00:03]}  Kf5 {[%clk 0:00:14]} 104. Nf2 {[%clk 0:00:04]}  Ra3+ {[%clk 0:00:15]} 105. Kh4 {[%clk 0:00:04]}  Rb3 {[%clk 0:00:15]} 106. Kh5 {[%clk 0:00:04]}  Rf3 {[%clk 0:00:16]} 0-1


[Site "https://www.chess.com"]